[Event "HUN-chT Youth-Children 2018"]
[Site "Zalakaros"]
[Date "2018.07.27"]
[Round "3"]
[White "Lazsadi, Kerka Lilla"]
[Black "Kovacs, Peter"]
[Result "1-0"]
[ECO "C48"]
[WhiteElo "1399"]
[BlackElo "1938"]
[Annotator "NA"]
[PlyCount "73"]
[EventDate "2018.07.26"]
[EventType "team-tourn"]
[EventCountry "HUN"]
[SourceTitle "playchess.com"]
[Source "ChessBase"]
[SourceQuality "1"]
[TimeControl "5400+30"]

1. e4 {[%emt 0:00:00]} e5 {[%emt 0:00:13]} 2. Nf3 {[%emt 0:00:00]} Nc6 {[%emt 0:00:26]} 3. Bb5 {[%emt 0:00:16]} Bc5 {[%emt 0:00:49]} 4. Nc3 {[%emt 0:00:41]} Nf6 {[%emt 0:00:52]} 5. d3 {[%emt 0:00:45]} d6 {[%emt 0:00:12]} 6. Be3 {[%emt 0:01:32]} Bg4 {[%emt 0:00:37]} 7. h3 {[%emt 0:01:45]} Bxf3 {[%emt 0:00:40]} 8. Qxf3 {[%emt 0:00:16]} Bd4 {[%emt 0:00:53]} 9. Bxd4 {[%emt 0:00:35]} exd4 {[%emt 0:00:12]} 10. Ne2 {[%emt 0:00:28]} O-O {[%emt 0:00:34]} 11. Bxc6 {[%emt 0:00:31]} bxc6 {[%emt 0:00:46]} 12. Nxd4 {[%emt 0:00:26]} c5 {[%emt 0:01:27]} 13. Nf5 {[%emt 0:00:56]} Qe8 {[%emt 0:01:28]} 14. Qg3 {[%emt 0:00:57]} Nh5 {[%emt 0:00:39]} 15. Qg4 {[%emt 0:01:06]} f6 {[%emt 0:00:34]} 16. O-O {[%emt 0:02:32]} Qg6 {[%emt 0:01:13]} 17. Ne7+ {[%emt 0:00:25]} Kf7 {[%emt 0:03:27]} 18. Nxg6 {[%emt 0:00:28]} hxg6 {[%emt 0:00:39]} 19. Qd7+ {[%emt 0:00:43]} Kg8 {[%emt 0:02:03]} 20. Qxc7 {[%emt 0:00:21]} Rac8 {[%emt 0:02:43]} 21. Qxd6 {[%emt 0:01:11]} Rfd8 {[%emt 0:00:44]} 22. Qa6 {[%emt 0:00:48]} Kh7 23. Qxa7 Kh6 {[%emt 0:06:22]} 24. a4 {[%emt 0:01:46]} Rh8 {[%emt 0:00:54]} 25. a5 {[%emt 0:00:48]} Rh7 {[%emt 0:01:19]} 26. Qd7 {[%emt 0:01:00]} Rch8 {[%emt 0:00:31]} 27. g3 {[%emt 0:00:39]} g5 {[%emt 0:03:01]} 28. a6 {[%emt 0:01:10]} Kg6 {[%emt 0:01:06]} 29. a7 {[%emt 0:01:16]} Nxg3 {[%emt 0:00:52]} 30. fxg3 {[%emt 0:00:21]} Rxh3 {[%emt 0:01:47]} 31. Qxh3 {[%emt 0:00:15]} Rxh3 {[%emt 0:00:43]} 32. a8=Q {[%emt 0:00:18]} Rxg3+ {[%emt 0:00:33]} 33. Kf2 {[%emt 0:00:21]} Rh3 {[%emt 0:01:38]} 34. Qe8+ {[%emt 0:00:21]} Kh7 {[%emt 0:00:54]} 35. Rh1 {[%emt 0:00:14]} Rh6 {[%emt 0:00:56]} 36. Rxh6+ {[%emt 0:00:10]} Kxh6 37. Rh1# 1-0

[Event "HUN-chT Youth-Children 2018"]
[Site "Zalakaros"]
[Date "2018.07.27"]
[Round "3"]
[White "Pasti, Zsombor"]
[Black "Kis, Izabella"]
[Result "0-1"]
[ECO "C50"]
[WhiteElo "1249"]
[BlackElo "1446"]
[Annotator "NA"]
[PlyCount "78"]
[EventDate "2018.07.26"]
[EventType "team-tourn"]
[EventCountry "HUN"]
[SourceTitle "playchess.com"]
[Source "ChessBase"]
[SourceQuality "1"]
[TimeControl "5400+30"]

1. e4 {[%emt 0:00:00]} e5 {[%emt 0:00:08]} 2. Nf3 {[%emt 0:00:00]} Nc6 {[%emt 0:00:07]} 3. Nc3 {[%emt 0:00:00]} Bc5 {[%emt 0:00:53]} 4. Bc4 {[%emt 0:00:00]} Nf6 {[%emt 0:00:38]} 5. d3 {[%emt 0:00:05]} h6 {[%emt 0:01:20]} 6. O-O {[%emt 0:00:24]} O-O {[%emt 0:01:59]} 7. Nxe5 {[%emt 0:00:16]} Nxe5 {[%emt 0:01:16]} 8. d4 {[%emt 0:00:07]} Nxc4 {[%emt 0:01:05]} 9. dxc5 {[%emt 0:00:31]} d6 {[%emt 0:02:33]} 10. Qe2 {[%emt 0:03:12]} Ne5 {[%emt 0:02:16]} 11. f4 {[%emt 0:01:44]} Nc6 {[%emt 0:03:26]} 12. Rd1 {[%emt 0:03:15]} Bg4 {[%emt 0:00:47]} 13. Qe1 {[%emt 0:03:15]} Bxd1 {[%emt 0:00:10]} 14. Qxd1 {[%emt 0:00:14]} Re8 {[%emt 0:01:37]} 15. Qf3 {[%emt 0:08:58]} Qe7 {[%emt 0:03:12]} 16. cxd6 {[%emt 0:07:52]} cxd6 {[%emt 0:00:31]} 17. f5 {[%emt 0:04:35]} Nxe4 {[%emt 0:02:55]} 18. Nd5 {[%emt 0:03:41]} Qd8 {[%emt 0:03:13]} 19. Qg4 {[%emt 0:05:07]} Kh7 {[%emt 0:03:46]} 20. Qh5 {[%emt 0:03:35]} Ne5 {[%emt 0:03:20]} 21. Bf4 {[%emt 0:05:14]} Nf6 {[%emt 0:03:32]} 22. Nxf6+ {[%emt 0:01:18]} Qxf6 {[%emt 0:00:43]} 23. Rf1 {[%emt 0:03:07]} g5 {[%emt 0:05:18]} 24. Bc1 {[%emt 0:03:36]} Rac8 {[%emt 0:02:51]} 25. c3 {[%emt 0:00:52]} Nd3 {[%emt 0:02:40]} 26. Bd2 {[%emt 0:03:08]} Re5 {[%emt 0:06:18]} 27. g4 {[%emt 0:01:21]} Kg7 {[%emt 0:02:16]} 28. Rf3 {[%emt 0:00:42]} Ne1 {[%emt 0:02:21]} 29. Rh3 {[%emt 0:01:28]} Re2 {[%emt 0:04:00]} 30. Be3 {[%emt 0:00:43]} Nc2 {[%emt 0:02:30]} 31. Bxa7 {[%emt 0:00:58]} Ra8 {[%emt 0:03:00]} 32. Bf2 {[%emt 0:01:33]} Rxa2 {[%emt 0:02:49]} 33. Kf1 {[%emt 0:01:15]} Rd2 {[%emt 0:03:10]} 34. b4 {[%emt 0:03:18]} Ra1+ {[%emt 0:02:39]} 35. Kg2 {[%emt 0:00:12]} Rad1 {[%emt 0:01:45]} 36. Kf3 {[%emt 0:03:16]} Qxc3+ {[%emt 0:02:46]} 37. Kg2 {[%emt 0:00:25]} Rxf2+ {[%emt 0:00:30]} 38. Kxf2 {[%emt 0:00:26]} Rd2+ {[%emt 0:00:32]} 39. Kg1 {[%emt 0:00:19]} Qa1# {[%emt 0:00:09]} 0-1

[Event "HUN-chT Youth-Children 2018"]
[Site "Zalakaros"]
[Date "2018.07.27"]
[Round "3"]
[White "Horvath, Sebestyen"]
[Black "Farkas, Otto Jr"]
[Result "0-1"]
[ECO "B02"]
[WhiteElo "1040"]
[BlackElo "1880"]
[Annotator "NA"]
[PlyCount "66"]
[EventDate "2018.07.26"]
[EventType "team-tourn"]
[EventCountry "HUN"]
[SourceTitle "playchess.com"]
[Source "ChessBase"]
[SourceQuality "1"]
[TimeControl "5400+30"]

1. e4 {[%emt 0:00:00]} Nf6 {[%emt 0:00:07]} 2. Nc3 {[%emt 0:01:34]} d5 {[%emt 0:00:07]} 3. exd5 {[%emt 0:02:17]} Nxd5 {[%emt 0:00:10]} 4. Nxd5 {[%emt 0:04:08]} Qxd5 {[%emt 0:00:07]} 5. Nf3 {[%emt 0:01:23]} Bg4 {[%emt 0:00:03]} 6. Be2 {[%emt 0:02:31]} c5 {[%emt 0:00:15] B02: Alekhine's Defence: Chase Variation and lines with early Nc3} (6... Nc6 7. c4 Qe6 8. d4 Bxf3 9. gxf3 O-O-O 10. d5 Qf6 11. Bd2 Ne5 12. Qb3 e6 13. O-O-O exd5 14. cxd5 Bc5 {0-1 (69) Skara,V (2230)-Gazik,V (2431) Slovakia 2015}) 7. h3 {[%emt 0:02:49]} Bh5 {[%emt 0:00:18]} 8. c3 $146 {[%emt 0:05:23]} ({Predecessor:} 8. O-O Nc6 9. b3 O-O-O 10. d3 g5 11. Bb2 f6 12. Nh2 Bxe2 13. Qxe2 h5 14. Rae1 {0-1 (32) Bilic,I (2204)-Juric,G (2313) Pula 2000}) 8... Nc6 {[%emt 0:00:33]} 9. O-O {[%emt 0:02:31]} e5 {[%emt 0:07:31]} 10. c4 {[%emt 0:03:54]} Qd6 {[%emt 0:00:42]} 11. d3 {[%emt 0:05:36]} O-O-O {[%emt 0:02:12]} 12. Ng5 {[%emt 0:02:14]} Bg6 {[%emt 0:03:12]} 13. Bh5 {[%emt 0:03:23]} Qf6 {[%emt 0:02:49]} 14. Bxg6 {[%emt 0:02:56]} Qxg6 {[%emt 0:00:24]} 15. Qg4+ {[%emt 0:04:37]} f5 {[%emt 0:00:27]} 16. Qe2 {[%emt 0:00:57]} h6 {[%emt 0:07:53]} 17. Nf3 {[%emt 0:00:58]} Bd6 {[%emt 0:00:11]} 18. b3 {[%emt 0:01:19]} Rhe8 {[%emt 0:01:43]} 19. Bb2 {[%emt 0:00:28]} Bc7 {[%emt 0:01:37]} 20. Rad1 {[%emt 0:00:47]} Qf7 {[%emt 0:03:29]} 21. a4 {[%emt 0:01:09]} g5 {[%emt 0:00:27]} 22. Bc3 {[%emt 0:01:05]} Qg6 {[%emt 0:03:57]} 23. Nh2 {[%emt 0:00:41]} h5 {[%emt 0:01:03]} 24. f3 {[%emt 0:02:23]} Nd4 {[%emt 0:02:38]} 25. Bxd4 {[%emt 0:00:25]} Rxd4 {[%emt 0:00:28]} 26. Kh1 {[%emt 0:01:04]} g4 {[%emt 0:00:55]} 27. fxg4 $19 {[%emt 0:00:18]} hxg4 {[%emt 0:00:37]} 28. hxg4 {[%emt 0:00:34]} fxg4 {[%emt 0:00:12]} 29. Qe3 {[%emt 0:00:27]} Rh8 {[%emt 0:00:51]} 30. Kg1 {[%emt 0:00:30]} e4 {[%emt 0:00:46]} 31. dxe4 {[%emt 0:00:14]} Bxh2+ {[%emt 0:00:04]} 32. Kf2 {[%emt 0:00:57]} g3+ {[%emt 0:00:02]} 33. Ke2 {[%emt 0:00:23]} Rxe4 {[%emt 0:00:16]} 0-1

[Event "HUN-chT Youth-Children 2018"]
[Site "Zalakaros"]
[Date "2018.07.27"]
[Round "4"]
[White "Vanczak, Tamas"]
[Black "Buzas, Bertalan"]
[Result "1/2-1/2"]
[ECO "D02"]
[WhiteElo "2339"]
[BlackElo "2230"]
[Annotator "NA"]
[PlyCount "65"]
[EventDate "2018.07.26"]
[EventType "team-tourn"]
[EventCountry "HUN"]
[SourceTitle "playchess.com"]
[Source "ChessBase"]
[SourceQuality "1"]
[TimeControl "5400+30"]

1. d4 {[%emt 0:00:00]} Nf6 {[%emt 0:00:05]} 2. Nf3 {[%emt 0:00:08]} d5 {[%emt 0:01:09]} 3. Bf4 {[%emt 0:00:25]} g6 {[%emt 0:02:48]} 4. e3 {[%emt 0:03:30]} c5 {[%emt 0:01:04]} 5. c3 {[%emt 0:00:44]} Nc6 {[%emt 0:00:14]} 6. Nbd2 {[%emt 0:02:02]} Bg7 {[%emt 0:00:08]} 7. Bd3 {[%emt 0:00:38]} O-O {[%emt 0:00:06]} 8. h3 {[%emt 0:00:50]} b6 {[%emt 0:00:43]} 9. O-O {[%emt 0:01:05]} Bb7 {[%emt 0:00:25]} 10. a4 {[%emt 0:01:09]} Nd7 {[%emt 0:01:24]} 11. Bb5 {[%emt 0:06:40]} Re8 {[%emt 0:02:38]} 12. Re1 {[%emt 0:02:19]} a6 {[%emt 0:01:28]} 13. Bxc6 {[%emt 0:00:19]} Bxc6 {[%emt 0:00:06]} 14. b4 {[%emt 0:02:51]} a5 {[%emt 0:03:45]} 15. Qb3 {[%emt 0:05:52]} e5 {[%emt 0:02:23]} 16. Nxe5 {[%emt 0:01:36]} Nxe5 {[%emt 0:00:36]} 17. Bxe5 {[%emt 0:00:18]} Bxe5 {[%emt 0:00:07]} 18. dxe5 {[%emt 0:00:06]} Rxe5 {[%emt 0:00:11]} 19. Nf3 {[%emt 0:04:59]} Re6 {[%emt 0:09:49]} 20. bxc5 {[%emt 0:02:20]} bxc5 {[%emt 0:00:05]} 21. Qa3 {[%emt 0:00:27]} Qe7 {[%emt 0:00:49]} 22. Rab1 {[%emt 0:09:11]} g5 {[%emt 0:04:47]} 23. Rb6 {[%emt 0:04:48]} h5 {[%emt 0:07:52]} 24. Nd4 {[%emt 0:10:18]} cxd4 {[%emt 0:01:58]} 25. Qxe7 {[%emt 0:00:07]} Rxe7 {[%emt 0:00:03]} 26. Rxc6 {[%emt 0:00:08]} dxc3 {[%emt 0:00:23]} 27. Rxc3 {[%emt 0:04:08]} Re4 {[%emt 0:06:29]} 28. Ra1 {[%emt 0:00:19]} Rc4 {[%emt 0:07:54]} 29. Rd3 {[%emt 0:12:31]} Rd8 {[%emt 0:01:20]} 30. Rb3 {[%emt 0:00:41]} Rb4 {[%emt 0:02:32]} 31. Rxb4 {[%emt 0:04:45]} axb4 {[%emt 0:00:10]} 32. Rb1 {[%emt 0:00:05]} Rb8 {[%emt 0:00:27]} 33. a5 {[%emt 0:00:55]} 1/2-1/2

[Event "HUN-chT Youth-Children 2018"]
[Site "Zalakaros"]
[Date "2018.07.27"]
[Round "4"]
[White "Papp, Levente"]
[Black "Acs, Marton"]
[Result "1/2-1/2"]
[ECO "A05"]
[WhiteElo "2311"]
[BlackElo "2204"]
[Annotator "NA"]
[PlyCount "138"]
[EventDate "2018.07.26"]
[EventType "team-tourn"]
[EventCountry "HUN"]
[SourceTitle "playchess.com"]
[Source "ChessBase"]
[SourceQuality "1"]
[TimeControl "5400+30"]

1. Nf3 {[%emt 0:00:00]} Nf6 {[%emt 0:00:44]} 2. g3 b6 3. Bg2 {[%emt 0:00:00]} Bb7 {[%emt 0:00:38]} 4. O-O e6 {[%emt 0:01:37]} 5. d3 {[%emt 0:01:39]} d5 {[%emt 0:07:25]} 6. c3 {[%emt 0:03:51]} Be7 {[%emt 0:03:10]} 7. Nbd2 {[%emt 0:00:41]} O-O {[%emt 0:10:44]} 8. Qc2 {[%emt 0:07:20]} c5 {[%emt 0:01:18]} 9. Re1 {[%emt 0:01:48]} Nc6 {[%emt 0:01:04]} 10. e4 {[%emt 0:00:30]} Qc7 {[%emt 0:00:30]} 11. Nf1 {[%emt 0:00:30]} Rfd8 12. e5 {[%emt 0:02:49]} Nd7 {[%emt 0:12:56]} 13. Bf4 {[%emt 0:12:06]} b5 {[%emt 0:01:48]} 14. h4 Bf8 {[%emt 0:10:21]} 15. h5 {[%emt 0:04:16]} h6 {[%emt 0:01:16]} 16. g4 {[%emt 0:04:57]} f6 {[%emt 0:09:09]} 17. d4 {[%emt 0:00:45]} fxe5 {[%emt 0:06:26]} 18. dxe5 {[%emt 0:00:32]} Nb6 {[%emt 0:01:53]} 19. g5 {[%emt 0:07:46]} Qf7 {[%emt 0:01:15]} 20. Qc1 {[%emt 0:00:08]} d4 {[%emt 0:04:39]} 21. gxh6 {[%emt 0:02:21]} Nd5 {[%emt 0:05:11]} 22. Bg5 {[%emt 0:02:52]} gxh6 {[%emt 0:00:44]} 23. Bxd8 {[%emt 0:06:19]} Rxd8 {[%emt 0:00:09]} 24. Re4 {[%emt 0:00:03]} dxc3 {[%emt 0:02:07]} 25. bxc3 {[%emt 0:00:28]} Bg7 {[%emt 0:02:51]} 26. c4 {[%emt 0:02:01]} Ndb4 {[%emt 0:01:15]} 27. Rf4 {[%emt 0:18:06]} Qxh5 {[%emt 0:04:59]} 28. Ng3 {[%emt 0:00:08]} Qg6 {[%emt 0:00:15]} 29. cxb5 {[%emt 0:00:15]} Nd3 {[%emt 0:00:37]} 30. Qc4 {[%emt 0:00:11]} Na5 {[%emt 0:06:29]} 31. Rg4 {[%emt 0:05:03]} Nxc4 {[%emt 0:00:05]} 32. Rxg6 {[%emt 0:00:03]} Bxf3 {[%emt 0:00:25]} 33. Bxf3 {[%emt 0:01:13]} Ncxe5 {[%emt 0:00:30]} 34. Rxg7+ {[%emt 0:00:00]} Kxg7 {[%emt 0:00:01]} 35. Be2 {[%emt 0:00:48]} c4 {[%emt 0:01:12]} 36. Ne4 {[%emt 0:00:11]} Nf4 {[%emt 0:00:39]} 37. Kf1 {[%emt 0:00:00]} Rd4 {[%emt 0:01:01]} 38. f3 {[%emt 0:00:02]} h5 {[%emt 0:02:37]} 39. Kf2 {[%emt 0:00:05]} Nxe2 {[%emt 0:00:45]} 40. Kxe2 {[%emt 0:00:01]} Ng6 {[%emt 0:00:41]} 41. a4 {[%emt 0:01:03]} e5 {[%emt 0:00:29]} 42. a5 {[%emt 0:01:18]} Nf4+ {[%emt 0:00:13]} 43. Kf2 {[%emt 0:00:10]} Rd3 {[%emt 0:00:56]} 44. b6 {[%emt 0:00:47]} axb6 {[%emt 0:00:37]} 45. a6 {[%emt 0:04:00]} Rd8 {[%emt 0:00:12]} 46. a7 {[%emt 0:02:22]} Ra8 {[%emt 0:00:01]} 47. Nd6 {[%emt 0:00:05]} Nd3+ {[%emt 0:01:09]} 48. Ke2 {[%emt 0:00:09]} Nb4 {[%emt 0:00:25]} 49. Nxc4 {[%emt 0:01:47]} Nc6 {[%emt 0:00:22]} 50. Nxb6 {[%emt 0:00:26]} Rxa7 {[%emt 0:00:05]} 51. Rxa7+ {[%emt 0:00:06]} Nxa7 {[%emt 0:00:06]} 52. Kf2 {[%emt 0:00:21]} Kf6 {[%emt 0:00:38]} 53. Nd5+ {[%emt 0:00:22]} Kg5 {[%emt 0:00:32]} 54. Ne3 {[%emt 0:00:56]} Nc6 {[%emt 0:00:20]} 55. Kg2 {[%emt 0:00:14]} Nd4 {[%emt 0:00:23]} 56. Nf1 {[%emt 0:00:21]} Kf4 {[%emt 0:00:27]} 57. Nd2 {[%emt 0:00:28]} h4 {[%emt 0:00:50]} 58. Ne4 {[%emt 0:03:37]} Nxf3 {[%emt 0:00:20]} 59. Nf6 {[%emt 0:00:01]} e4 {[%emt 0:01:11]} 60. Nd5+ {[%emt 0:00:01]} Ke5 {[%emt 0:00:29]} 61. Ne3 {[%emt 0:00:02]} Kd4 {[%emt 0:00:29]} 62. Kf2 {[%emt 0:00:01]} Kd3 {[%emt 0:00:48]} 63. Nf5 {[%emt 0:00:52]} h3 {[%emt 0:00:54]} 64. Kg3 {[%emt 0:00:05]} h2 {[%emt 0:00:06]} 65. Kg2 {[%emt 0:00:03]} e3 {[%emt 0:00:19]} 66. Nxe3 {[%emt 0:00:02]} Kxe3 {[%emt 0:00:18]} 67. Kh1 {[%emt 0:00:02]} Kf4 {[%emt 0:00:25]} 68. Kg2 {[%emt 0:00:02]} Kg4 {[%emt 0:00:13]} 69. Kh1 {[%emt 0:00:01]} Kg3 1/2-1/2

[Event "HUN-chT Youth-Children 2018"]
[Site "Zalakaros"]
[Date "2018.07.27"]
[Round "4"]
[White "Krstulovic, Alex"]
[Black "Bohus, Adam"]
[Result "0-1"]
[ECO "D25"]
[WhiteElo "2289"]
[BlackElo "2231"]
[Annotator "NA"]
[PlyCount "46"]
[EventDate "2018.07.26"]
[EventType "team-tourn"]
[EventCountry "HUN"]
[SourceTitle "playchess.com"]
[Source "ChessBase"]
[SourceQuality "1"]
[TimeControl "5400+30"]

1. d4 {[%emt 0:00:00]} d5 {[%emt 0:00:12]} 2. Nf3 {[%emt 0:00:00]} Nf6 {[%emt 0:00:09]} 3. c4 {[%emt 0:00:00]} dxc4 {[%emt 0:00:12]} 4. e3 {[%emt 0:00:00]} a6 {[%emt 0:00:25]} 5. Bxc4 {[%emt 0:00:00]} e6 {[%emt 0:00:12]} 6. O-O {[%emt 0:00:06]} c5 {[%emt 0:00:09]} 7. Bb3 {[%emt 0:00:07]} Nc6 {[%emt 0:00:22]} 8. Nc3 {[%emt 0:00:13]} b5 {[%emt 0:00:26]} 9. d5 {[%emt 0:05:52]} exd5 {[%emt 0:00:33]} 10. Bxd5 {[%emt 0:02:11]} Nxd5 {[%emt 0:09:09]} 11. Nxd5 {[%emt 0:01:07]} Bg4 12. h3 {[%emt 0:01:57]} Bh5 {[%emt 0:17:08]} 13. e4 {[%emt 0:05:40]} Bd6 {[%emt 0:20:29]} 14. g4 {[%emt 0:07:20]} Bg6 {[%emt 0:00:18]} 15. e5 {[%emt 0:01:32]} Be7 {[%emt 0:08:01]} 16. Nxe7 {[%emt 0:03:16]} Qxe7 {[%emt 0:02:32]} 17. Bg5 {[%emt 0:17:49]} Qe6 {[%emt 0:02:00]} 18. Qc1 {[%emt 0:02:42]} c4 {[%emt 0:16:56]} 19. Rd1 {[%emt 0:05:30]} Bd3 20. Bf4 {[%emt 0:21:25]} h5 {[%emt 0:14:59]} 21. Qe3 {[%emt 0:23:00]} hxg4 {[%emt 0:01:29]} 22. hxg4 {[%emt 0:00:01]} Qxg4+ {[%emt 0:01:07]} 23. Bg3 {[%emt 0:00:01]} Be4 {[%emt 0:01:09]} 0-1

[Event "HUN-chT Youth-Children 2018"]
[Site "Zalakaros"]
[Date "2018.07.27"]
[Round "4"]
[White "Kokeny, Norbert Adrian"]
[Black "Polyik, Peter"]
[Result "1/2-1/2"]
[ECO "A13"]
[WhiteElo "2249"]
[BlackElo "2265"]
[Annotator "NA"]
[PlyCount "58"]
[EventDate "2018.07.26"]
[EventType "team-tourn"]
[EventCountry "HUN"]
[SourceTitle "playchess.com"]
[Source "ChessBase"]
[SourceQuality "1"]
[TimeControl "5400+30"]

1. c4 {[%emt 0:00:00]} e6 {[%emt 0:00:50]} 2. Nf3 {[%emt 0:00:21]} d5 {[%emt 0:00:10]} 3. e3 {[%emt 0:00:11]} Nf6 {[%emt 0:00:18]} 4. Nc3 {[%emt 0:00:45]} c6 {[%emt 0:00:25]} 5. b3 {[%emt 0:00:39]} Nbd7 {[%emt 0:00:47]} 6. Bb2 {[%emt 0:00:15]} Bd6 {[%emt 0:00:27]} 7. Qc2 {[%emt 0:00:30]} O-O {[%emt 0:01:21]} 8. Rc1 {[%emt 0:02:15]} Qe7 {[%emt 0:06:43]} 9. cxd5 {[%emt 0:04:06]} exd5 {[%emt 0:00:19]} 10. d4 {[%emt 0:01:08]} Re8 {[%emt 0:04:35]} 11. Nd2 {[%emt 0:03:28]} Nf8 {[%emt 0:12:23]} 12. Bd3 {[%emt 0:03:13]} Ne6 {[%emt 0:09:08]} 13. Ne2 {[%emt 0:01:04]} Ng5 {[%emt 0:01:41]} 14. Ng3 {[%emt 0:14:23]} Nge4 {[%emt 0:03:17]} 15. Bxe4 {[%emt 0:04:21]} Nxe4 {[%emt 0:03:04]} 16. Ngxe4 {[%emt 0:00:15]} dxe4 {[%emt 0:00:07]} 17. Nc4 {[%emt 0:00:12]} Bc7 {[%emt 0:07:29]} 18. h4 {[%emt 0:00:44]} Bf5 {[%emt 0:08:09]} 19. Qe2 {[%emt 0:00:51]} Qe6 {[%emt 0:01:44]} 20. Qd2 {[%emt 0:07:59]} Qg6 {[%emt 0:03:57]} 21. g3 {[%emt 0:01:38]} Rad8 {[%emt 0:01:12]} 22. Na5 {[%emt 0:02:13]} Bc8 {[%emt 0:01:57]} 23. Rc5 {[%emt 0:01:03]} Rd5 {[%emt 0:01:09]} 24. Qc3 {[%emt 0:04:40]} Red8 {[%emt 0:07:20]} 25. Ba3 {[%emt 0:09:05]} Rxc5 {[%emt 0:02:58]} 26. Qxc5 {[%emt 0:00:06]} Bd6 {[%emt 0:02:06]} 27. Qc1 {[%emt 0:00:15]} Bc7 {[%emt 0:03:00]} 28. Qc5 {[%emt 0:00:40]} Bd6 {[%emt 0:00:04]} 29. Qc1 {[%emt 0:00:05]} Bc7 {[%emt 0:00:44]} 1/2-1/2

[Event "HUN-chT Youth-Children 2018"]
[Site "Zalakaros"]
[Date "2018.07.27"]
[Round "4"]
[White "Ugroczky, Peter"]
[Black "Egyed, Judit"]
[Result "0-1"]
[ECO "B53"]
[WhiteElo "2247"]
[BlackElo "2171"]
[Annotator "NA"]
[PlyCount "76"]
[EventDate "2018.07.26"]
[EventType "team-tourn"]
[EventCountry "HUN"]
[SourceTitle "playchess.com"]
[Source "ChessBase"]
[SourceQuality "1"]
[TimeControl "5400+30"]

1. e4 {[%emt 0:00:00]} c5 {[%emt 0:00:10]} 2. Nf3 {[%emt 0:00:00]} d6 {[%emt 0:00:10]} 3. d4 {[%emt 0:00:03]} cxd4 {[%emt 0:00:07]} 4. Qxd4 {[%emt 0:00:06]} Nc6 {[%emt 0:00:09]} 5. Bb5 {[%emt 0:00:06]} Bd7 {[%emt 0:00:06]} 6. Bxc6 {[%emt 0:00:05]} Bxc6 {[%emt 0:00:04]} 7. Nc3 {[%emt 0:00:55]} Nf6 {[%emt 0:00:12]} 8. Bg5 {[%emt 0:00:40]} e6 {[%emt 0:01:11]} 9. O-O-O {[%emt 0:00:38]} Be7 {[%emt 0:00:06]} 10. Qd3 {[%emt 0:00:52]} O-O {[%emt 0:01:32]} 11. Nd4 {[%emt 0:00:55]} d5 {[%emt 0:16:32]} 12. e5 {[%emt 0:03:27]} Ng4 {[%emt 0:01:17]} 13. Bxe7 {[%emt 0:00:29]} Qxe7 {[%emt 0:00:04]} 14. Qg3 {[%emt 0:00:46]} Nh6 {[%emt 0:07:09]} 15. f4 {[%emt 0:01:49]} a6 {[%emt 0:05:32]} 16. Qf3 {[%emt 0:02:13]} f6 {[%emt 0:13:52]} 17. Rde1 {[%emt 0:02:28]} Bd7 {[%emt 0:01:33]} 18. exf6 {[%emt 0:06:16]} Qxf6 {[%emt 0:00:22]} 19. Nce2 {[%emt 0:00:24]} Nf7 {[%emt 0:10:41]} 20. Rhf1 {[%emt 0:07:34]} Rac8 {[%emt 0:05:32]} 21. Rd1 {[%emt 0:06:55]} Nd6 {[%emt 0:02:59]} 22. g4 {[%emt 0:02:15]} Ne4 {[%emt 0:04:49]} 23. Ng3 {[%emt 0:09:27]} e5 {[%emt 0:01:07]} 24. Ndf5 {[%emt 0:09:17]} Ba4 {[%emt 0:07:37]} 25. b3 {[%emt 0:15:05]} exf4 {[%emt 0:01:48]} 26. Nxe4 {[%emt 0:01:33]} dxe4 {[%emt 0:00:14]} 27. Qxe4 {[%emt 0:02:07]} Qa1+ {[%emt 0:00:35]} 28. Kd2 {[%emt 0:00:04]} Qc3+ {[%emt 0:00:26]} 29. Kc1 {[%emt 0:01:06]} Qa1+ {[%emt 0:00:06]} 30. Kd2 {[%emt 0:00:05]} Rcd8+ {[%emt 0:02:01]} 31. Ke2 {[%emt 0:00:45]} Bb5+ {[%emt 0:00:16]} 32. c4 {[%emt 0:00:36]} Qxa2+ {[%emt 0:01:06]} 33. Kf3 {[%emt 0:01:13]} Qxb3+ {[%emt 0:00:17]} 34. Kg2 {[%emt 0:02:43]} Rxd1 {[%emt 0:02:24]} 35. Nh6+ {[%emt 0:01:12]} Kh8 {[%emt 0:00:35]} 36. cxb5 {[%emt 0:02:12]} Rxf1 {[%emt 0:01:14]} 37. Kxf1 {[%emt 0:00:24]} Qxb5+ {[%emt 0:01:08]} 38. Kg1 {[%emt 0:00:08]} Qb6+ {[%emt 0:00:06]} 0-1

[Event "HUN-chT Youth-Children 2018"]
[Site "Zalakaros"]
[Date "2018.07.27"]
[Round "4"]
[White "Juhasz, Agoston"]
[Black "Czupor, Attila"]
[Result "1/2-1/2"]
[ECO "C47"]
[WhiteElo "2244"]
[BlackElo "2239"]
[Annotator "NA"]
[PlyCount "35"]
[EventDate "2018.07.26"]
[EventType "team-tourn"]
[EventCountry "HUN"]
[SourceTitle "playchess.com"]
[Source "ChessBase"]
[SourceQuality "1"]
[TimeControl "5400+30"]

1. e4 {[%emt 0:00:00]} e5 {[%emt 0:00:19]} 2. Nf3 {[%emt 0:00:00]} Nc6 {[%emt 0:00:11]} 3. Nc3 {[%emt 0:00:00]} Nf6 {[%emt 0:00:51]} 4. d4 {[%emt 0:00:06]} exd4 {[%emt 0:00:19]} 5. Nxd4 {[%emt 0:00:10]} Bb4 {[%emt 0:00:18]} 6. Nxc6 {[%emt 0:00:09]} bxc6 {[%emt 0:00:06]} 7. Bd3 {[%emt 0:00:09]} O-O {[%emt 0:00:39]} 8. O-O {[%emt 0:00:11]} d5 {[%emt 0:00:08]} 9. exd5 {[%emt 0:00:08]} cxd5 {[%emt 0:00:05]} 10. h3 {[%emt 0:00:11]} c6 {[%emt 0:00:11]} 11. Qf3 {[%emt 0:00:21]} Rb8 {[%emt 0:02:16]} 12. Bf4 {[%emt 0:00:37]} Bd6 {[%emt 0:00:09]} 13. b3 {[%emt 0:00:27]} Rb7 {[%emt 0:02:17]} 14. Ne2 {[%emt 0:03:20]} Re7 {[%emt 0:06:30]} 15. Rad1 {[%emt 0:02:29]} Bxf4 {[%emt 0:01:34]} 16. Nxf4 {[%emt 0:01:09]} Qa5 {[%emt 0:01:26]} 17. a4 {[%emt 0:05:25]} Rfe8 {[%emt 0:01:05]} 18. Nh5 {[%emt 0:06:03]} 1/2-1/2